[Event "Olomouc Chess Summer Open 2022"]
[Site "Olomouc"]
[Date "2022.08.19"]
[Round "8.15"]
[White "Mannion, Stephen R"]
[Black "Biolek, Richard Jr."]
[Result "1/2-1/2"]
[ECO "B69"]
[WhiteElo "2232"]
[BlackElo "2437"]
[Annotator "TA"]
[PlyCount "117"]
[EventDate "2022.08.14"]
[EventCountry "CZE"]
[SourceTitle "playchess.com"]
[Source "ChessBase"]
[SourceQuality "1"]
[TimeControl "40/5400+30:1800+30"]

{[%evp 22,117,55,18,36,0,40,25,24,21,16,17,4,8,9,15,14,0,11,16,22,0,50,41,44,0,0,2,4,0,0,0,4,0,18,15,24,22,38,0,39,8,32,20,19,20,20,19,20,22,31,-54,-66,-64,0,0,0,-156,-160,-160,-163,-172,-172,-159,-172,-162,-169,-130,-112,-158,-127,-195,-195,-186,-191,-178,-34,-51,-10,-6,0,0,0,0,0,0,0,0,0,0,0,0,0,0,0,0,0,0]} 1. e4 {[%emt 0:00:03]} c5 {[%emt 0:00:04]} 2. Nf3 {[%emt 0:00:09]} d6 {[%emt 0:00:06]} 3. d4 {[%emt 0:00:07]} cxd4 {[%emt 0:00:04]} 4. Nxd4 {[%emt 0:00:05]} Nf6 {[%emt 0:00:04]} 5. Nc3 {[%emt 0:00:08]} Nc6 {[%emt 0:00:05]} 6. Bg5 {[%emt 0:00:16]} e6 {[%emt 0:00:08]} 7. Qd2 {[%emt 0:00:22]} a6 {[%emt 0:00:07]} 8. O-O-O {[%emt 0:01:42]} Bd7 {[%emt 0:00:09]} 9. f4 {[%emt 0:01:12]} Be7 {[%emt 0:03:02]} 10. Nf3 {[%emt 0:00:35]} b5 {[%emt 0:06:33]} 11. Bxf6 {[%emt 0:17:10]} gxf6 {[%emt 0:00:21]} 12. Bd3 {[%emt 0:00:10]} Qb6 {[%emt 0:02:33] B69: Sicilian: Richter-Rauzer: 7...a6 8 0-0-0 Bd7 9 f4 Be7 10 Nf3 b5 11 Bxf6.} 13. Rhe1 {[%emt 0:10:18]} O-O-O {[%emt 0:03:38]} (13... b4 $5 {[%cal Rb4c3]} 14. Ne2 a5 $11) 14. Bf1 {[%emt 0:14:06]} Kb8 {[%emt 0:05:11] White has an edge.} 15. Kb1 {[%emt 0:02:23]} Rc8 {[#]} 16. Nd4 $146 {[%emt 0:01:59]} ({Predecessor:} 16. Ne2 Na5 17. Ned4 Nc4 18. Bxc4 bxc4 19. Qe3 Rc5 20. e5 fxe5 21. fxe5 d5 22. Ng5 {½-½ (41) Chigaev,M (2520)-Lobanov,S (2271) St Petersburg 2014}) 16... Nxd4 {[%emt 0:37:04]} 17. Qxd4 {[%emt 0:00:07]} Qxd4 {[%emt 0:00:29]} 18. Rxd4 {[%emt 0:00:03]} Ka7 {[%emt 0:01:19]} 19. Rd3 {[%emt 0:15:51]} Rc7 {[%emt 0:07:05]} 20. a3 {[%emt 0:03:29]} Kb6 {[%emt 0:04:32]} 21. Red1 {[%emt 0:02:25]} Bc6 {[%emt 0:00:30]} (21... h5 $11) 22. Rh3 $14 {[%emt 0:04:01]} h5 {[%emt 0:07:55]} 23. g4 {[%emt 0:04:35]} h4 {[%emt 0:00:34]} 24. f5 {[%emt 0:01:37]} Bb7 {[%emt 0:00:55]} 25. Be2 {[%emt 0:01:35]} Rc5 {[%emt 0:01:29]} 26. Rd4 {[%emt 0:03:17]} Re5 {[%emt 0:01:37]} 27. b4 {[%emt 0:04:00]} Bc6 {[%emt 0:03:45]} 28. Kb2 {[%emt 0:00:46]} Kb7 {[%emt 0:02:48][%cal Bb6b7,Bb7c7,Bc7d7,Bd7e8,Be8f8][%mdl 32]} 29. Bf3 {[%emt 0:01:16]} Kc7 {[%emt 0:00:28]} 30. Be2 {[%emt 0:02:21][%cal Oa3a4]} Kd7 {[%emt 0:00:01]} 31. Rhd3 {[%emt 0:02:07]} (31. a4 $5) 31... Bf8 {[%emt 0:07:56]} 32. Bf3 {[%emt 0:00:15]} h3 {[%emt 0:01:39]} 33. Ne2 {[%emt 0:01:33]} exf5 {[%emt 0:02:04]} 34. gxf5 {[%emt 0:00:07]} Rh4 {[%emt 0:00:01][%cal Rc6e4]} 35. Nc3 {[%emt 0:01:30]} Ke8 {[%emt 0:01:26]} 36. Rxd6 {[%emt 0:03:33]} (36. Kb3 $14) 36... Bxd6 $15 {[%emt 0:00:24]} 37. Rxd6 {[%emt 0:00:01]} Rf4 {[%emt 0:00:43]} ({Better is} 37... Bb7 $1 $15) 38. Rxc6 $11 {[%emt 0:00:40]} Rxf3 {[%emt 0:00:02]} 39. Rxa6 $2 {[%emt 0:01:32][%mdl 4096] Endgame KRR-KRN} (39. Nd5 $11) 39... Kf8 $1 $17 {[%emt 0:00:36]} (39... Rf2 40. Nd5 Rxd5 41. exd5 $16) 40. Rxf6 {[%emt 0:00:19]} Kg7 {[%emt 0:00:13] Inhibits Rh6.} 41. Rd6 {[%emt 0:04:45]} Rf2 {[%emt 0:02:48]} 42. Rd3 {[%emt 0:00:03]} Rxh2 {[%emt 0:00:05] Hoping for ...Kf6.} 43. Rg3+ {[%emt 0:11:32]} Kf8 $1 {[%emt 0:00:22]} 44. a4 {[%emt 0:02:20]} bxa4 {[%emt 0:00:31]} 45. b5 {[%emt 0:00:06]} Ke7 {[%emt 0:17:10]} 46. b6 {[%emt 0:01:00]} (46. Nd5+ $17 Kd6 47. Rd3) 46... Kd6 $19 {[%emt 0:00:12] And now ...Rh1 would win.} 47. Nxa4 {[%emt 0:07:41] [#]} Rb5+ $1 {[%emt 0:01:07]} (47... Rxe4 48. Rd3+ Kc6 49. Rc3+ Kd6 50. Rd3+ Kc6 51. Rc3+ Kd6 52. Rd3+ $11) 48. Kc3 {[%emt 0:01:33]} Rh1 {[%emt 0:00:52]} (48... Kc6 $19 49. Rg7 Re2) 49. Nb2 $1 $15 {[%emt 0:02:00]} h2 {[%emt 0:10:22]} (49... Rxb6 50. Nc4+ Kc7 51. Nxb6 $11) (49... Kc6 $5 {[%cal Rh1a1]} 50. Nd3 Kxb6 $17) 50. Rh3 $1 {[%emt 0:00:21] The position is equal.} Kc5 {[%emt 0:02:10]} ({Don't do} 50... Rxb6 51. Nc4+ Kc7 52. Nxb6 Kxb6 53. Kc4 $14) 51. Rh6 {[%emt 0:00:43][%cal Rb2a4]} f6 $1 {[%emt 0:00:55]} 52. Nd3+ {[%emt 0:01:24]} ({Wrong is} 52. Rxf6 $2 {[#]} Rxb2 $1 {[%mdl 512]} 53. Kxb2 Rf1 $19) 52... Kxb6 {[%emt 0:00:10]} 53. Rxf6+ {[%emt 0:00:06]} Kc7 {[%emt 0:00:48]} (53... Ka7 $5 54. Rh6 Rb6 $11) 54. Rh6 {[%emt 0:00:08]} Rb6 {[%emt 0:00:14]} 55. Rh7+ {[%emt 0:00:08]} Kd8 {[%emt 0:00:09]} 56. e5 {[%emt 0:02:08]} Rf1 {[%emt 0:00:32]} 57. Rxh2 {[%emt 0:00:14] Strongly threatening f6.} Rxf5 {[%emt 0:00:03]} 58. Kd4 {[%emt 0:00:33]} Rf1 {[%emt 0:00:48]} 59. Rh8+ {[%emt 0:01:58] Whites escaped into a draw.  Weighted Error Value: White=0.16 (very precise) /Black=0.13 (very precise)} 1/2-1/2

[Event "Olomouc Chess Summer Open 2022"]
[Site "Olomouc"]
[Date "2022.08.19"]
[Round "8.16"]
[White "Muzika, Paul"]
[Black "Jordanov, Mihail"]
[Result "1/2-1/2"]
[ECO "C84"]
[WhiteElo "2072"]
[BlackElo "2158"]
[Annotator "TA"]
[PlyCount "162"]
[EventDate "2022.08.14"]
[EventCountry "CZE"]
[SourceTitle "playchess.com"]
[Source "ChessBase"]
[SourceQuality "1"]
[TimeControl "40/5400+30:1800+30"]

{[%evp 23,162,16,44,8,11,20,37,0,39,40,70,7,53,-22,-27,-22,-30,-18,-11,-25,0,-16,0,0,0,0,0,-10,0,-10,-10,-4,-14,-9,-10,-12,-16,-7,0,0,0,0,0,-6,35,28,27,22,20,22,16,0,0,0,0,0,0,0,0,0,0,0,0,0,0,0,0,-3,-8,-44,-44,-44,-44,-44,-44,-44,-44,-44,-44,-44,-44,-44,-44,-44,0,0,0,0,0,0,0,0,0,0,0,0,0,0,0,0,0,0,0,0,0,0,0,0,0,0,0,0,0,0,0,0,0,0,0,0,0,0,0,0,0,0,0,0,0,0,0,0,0,0,0,0,0,0,0,0,0]} 1. e4 {[%emt 0:00:07]} e5 {[%emt 0:00:10]} 2. Nf3 {[%emt 0:00:05]} Nc6 {[%emt 0:00:04]} 3. Bb5 {[%emt 0:00:16]} a6 {[%emt 0:00:12]} 4. Ba4 {[%emt 0:00:05]} Nf6 {[%emt 0:00:12]} 5. O-O {[%emt 0:00:09]} Be7 {[%emt 0:00:31]} 6. d3 {[%emt 0:00:18]} d6 {[%emt 0:00:47]} 7. c3 {[%emt 0:00:06]} O-O {[%emt 0:00:12]} 8. Re1 {[%emt 0:00:06]} b5 {[%emt 0:00:18]} 9. Bc2 {[%emt 0:00:05]} d5 {[%emt 0:00:34]} 10. Nbd2 {[%emt 0:00:16]} dxe4 {[%emt 0:01:18]} 11. dxe4 {[%emt 0:00:08]} Be6 {[%emt 0:01:45]} 12. h3 {[%emt 0:00:18]} h6 {[%emt 0:01:15]} 13. Nh2 {[%emt 0:00:13] C84: Closed Ruy Lopez: Unusual White 6th moves.} Bc5 {[%emt 0:11:25]} 14. Qf3 {[%emt 0:11:49] [#]} b4 $146 {[%emt 0:15:01]} ({Predecessor:} 14... a5 15. Ndf1 a4 16. Ne3 Ne7 17. Nhg4 Nxg4 18. Nxg4 Ng6 19. Ne3 c6 20. Nf5 Kh7 {½-½ (33) Lebled,P (2388)-Robleto,O (2320) ICCF email 2018}) 15. Ndf1 {[%emt 0:06:37] White is slightly better.} Kh7 {[%emt 0:09:20]} 16. Ne3 {[%emt 0:02:45]} Bxe3 {[%emt 0:10:45]} 17. Bxe3 {[%emt 0:00:17]} (17. Qxe3 $14 a5 18. Nf3) 17... Qe7 {[%emt 0:00:34]} (17... bxc3 $11 18. bxc3 Qe7) 18. Ng4 ({Better is} 18. Ba4 $14 Na5 19. cxb4 Qxb4 20. b3) 18... Nxg4 $11 {[%emt 0:06:10]} 19. hxg4 {[%emt 0:10:36]} bxc3 {[%emt 0:00:54]} 20. bxc3 {[%emt 0:00:07][%cal Og4g5]} Qh4 {[%emt 0:01:21] Against g5} 21. Bd1 {[%emt 0:00:09]} Rfd8 {[%emt 0:01:15]} 22. Be2 {[%emt 0:01:09]} Na5 {[%emt 0:03:27]} 23. g3 {[%emt 0:04:47]} Qe7 {[%emt 0:05:35]} 24. g5 {[%emt 0:02:06]} hxg5 {[%emt 0:02:47]} 25. Qh5+ {[%emt 0:00:12]} Kg8 {[%emt 0:00:04]} 26. Bxg5 {[%emt 0:00:16]} f6 {[%emt 0:00:06]} 27. Bc1 {[%emt 0:12:26]} Qf7 {[%emt 0:03:46]} 28. Qh4 {[%emt 0:05:07]} g5 {[%emt 0:03:58]} 29. Qh6 {[%emt 0:00:10]} Qg7 {[%emt 0:00:39]} 30. Qh5 {[%emt 0:01:19]} Qh7 {[%emt 0:00:59]} 31. Qxh7+ {[%emt 0:04:41]} Kxh7 {[%emt 0:00:05]} 32. f4 {[%emt 0:00:20]} gxf4 {[%emt 0:07:09]} 33. gxf4 {[%emt 0:00:06]} Bg4 {[%emt 0:03:51]} 34. Bxg4 {[%emt 0:08:29]} Rg8 {[%emt 0:00:04] [#]} 35. Kf2 $1 {[%emt 0:00:08]} Rxg4 {[%emt 0:00:05]} 36. Rh1+ {[%emt 0:00:08]} Kg8 $1 {[%emt 0:00:19]} 37. Kf3 {[%emt 0:00:33]} Rg7 {[%emt 0:00:12]} 38. Be3 {[%emt 0:07:26]} Nc4 {[%emt 0:02:28]} 39. Rhg1 {[%emt 0:06:27]} Rd8 {[%emt 0:04:43] [#] And now ...Rd3 would win.} 40. Rxg7+ {[%emt 0:01:48]} Kxg7 {[%emt 0:00:04]} 41. Ke2 {[%emt 0:33:21] Prevents Rd3.} Nxe3 {[%emt 0:09:45]} 42. Kxe3 {[%emt 0:00:00]} exf4+ {[%emt 0:00:04]} 43. Kxf4 {[%emt 0:00:00][%mdl 4096] Endgame KR-KR} Rd3 {[%emt 0:00:08]} 44. e5 {[%emt 0:00:00]} Rxc3 {[%emt 0:01:56]} 45. exf6+ {[%emt 0:00:00]} Kxf6 {[%emt 0:00:12]} 46. Ke4 {[%emt 0:00:00]} Ke6 {[%emt 0:01:33]} 47. Kd4 {[%emt 0:00:00]} Rc2 {[%emt 0:01:14]} 48. a4 {[%emt 0:00:00]} Kd7 {[%emt 0:05:40]} 49. Kd3 {[%emt 0:00:00]} Rc5 {[%emt 0:05:23]} 50. Kd4 {[%emt 0:00:00]} Kd6 {[%emt 0:01:13]} 51. Ra2 {[%emt 0:00:00]} Rh5 {[%emt 0:02:30]} 52. Kc4 {[%emt 0:00:00]} Rh4+ {[%emt 0:00:11]} 53. Kb3 {[%emt 0:00:00]} c5 {[%emt 0:05:08]} 54. Rg2 {[%emt 0:00:00] The position is equal.} Kd5 {[%emt 0:02:30]} 55. Rg6 {[%emt 0:00:00]} a5 {[%emt 0:00:59]} 56. Ra6 {[%emt 0:00:00]} c4+ {[%emt 0:00:17]} 57. Kc2 {[%emt 0:00:00]} Rh2+ {[%emt 0:00:18]} 58. Kc3 {[%emt 0:00:00]} Rh3+ {[%emt 0:00:07]} 59. Kc2 {[%emt 0:00:00]} Kd4 {[%emt 0:01:21]} 60. Rxa5 {[%emt 0:00:00]} Rh2+ {[%emt 0:00:07]} 61. Kc1 {[%emt 0:00:00]} Kc3 {[%emt 0:00:29][%cal Rh2h1]} 62. Kb1 {[%emt 0:06:43]} Rb2+ {[%emt 0:02:41]} 63. Kc1 {[%emt 0:00:38]} Ra2 {[%emt 0:00:31][%cal Ra2a1]} 64. Kb1 {[%emt 0:00:19] Inhibits Ra1+.} Rb2+ {[%emt 0:00:06]} 65. Kc1 {[%emt 0:00:04]} Rg2 {[%emt 0:00:05][%cal Rg2g1]} 66. Kb1 {[%emt 0:00:13]} Rg1+ {[%emt 0:00:47]} 67. Ka2 {[%emt 0:00:04]} Kb4 {[%emt 0:01:04]} 68. Ra8 {[%emt 0:00:13]} c3 {[%emt 0:01:11] ( -> ...c2)} 69. Rc8 {[%emt 0:01:50]} Rg2+ {[%emt 0:00:33]} 70. Kb1 {[%emt 0:00:06]} Rg1+ {[%emt 0:01:02]} (70... Kb3 $5 71. Rb8+ Kxa4 $11) 71. Kc2 {[%emt 0:00:12]} Rg2+ {[%emt 0:00:11]} 72. Kc1 {[%emt 0:00:05]} Kb3 {[%emt 0:00:56][%cal Rg2g1]} 73. Rb8+ {[%emt 0:00:05]} Kxa4 {[%emt 0:00:17]} 74. Ra8+ {[%emt 0:00:04]} Kb4 {[%emt 0:00:05]} (74... Kb3 $5 75. Rb8+ Ka4 $11) 75. Rb8+ {[%emt 0:00:05]} Kc4 {[%emt 0:00:03]} 76. Rc8+ {[%emt 0:00:04]} Kd3 {[%emt 0:00:10][%cal Rg2g1]} 77. Rd8+ {[%emt 0:00:04]} Ke2 {[%emt 0:00:04]} 78. Kc2 {[%emt 0:00:19]} Rg3 {[%emt 0:00:09]} 79. Rc8 {[%emt 0:00:19]} Re3 {[%emt 0:00:11]} 80. Rxc3 {[%emt 0:00:06]} Kf3 {[%emt 0:00:10]} 81. Rxe3+ {[%emt 0:00:05]} Kxe3 {[%emt 0:00:09] Weighted Error Value: White=0.10 (very precise) /Black=0.07 (flawless)} 1/2-1/2

[Event "Olomouc Chess Summer Open 2022"]
[Site "Olomouc"]
[Date "2022.08.19"]
[Round "8.17"]
[White "Marek, Matyas"]
[Black "Fizer, Marek"]
[Result "1-0"]
[ECO "A04"]
[WhiteElo "2354"]
[BlackElo "1998"]
[Annotator "TA"]
[PlyCount "96"]
[EventDate "2022.08.14"]
[EventCountry "CZE"]
[SourceTitle "playchess.com"]
[Source "ChessBase"]
[SourceQuality "1"]
[TimeControl "40/5400+30:1800+30"]

{[%evp 9,96,-24,-15,-16,119,104,116,100,104,61,227,220,208,219,199,86,124,116,120,116,120,124,129,134,130,117,123,123,121,122,128,132,146,116,128,119,119,121,125,122,123,113,123,112,150,148,178,172,268,194,199,194,183,185,181,174,175,144,141,143,202,205,222,220,211,218,276,232,230,195,267,252,435,426,452,464,502,464,5522,4102,29970,29971,29971,29972,29974,29976,29972,29972,29987]} 1. Nf3 {[%emt 0:00:03]} c5 {[%emt 0:00:06]} 2. g3 {[%emt 0:00:04]} Nc6 {[%emt 0:00:06]} 3. Bg2 {[%emt 0:00:03]} g6 {[%emt 0:00:07]} 4. O-O {[%emt 0:00:04]} Bg7 {[%emt 0:00:05]} 5. c3 {[%emt 0:00:03]} e5 {[%emt 0:00:16]} 6. d4 {[%emt 0:00:04] A04: Unusual lines after 1 Nf3 and King's Indian Attack.} d6 {[%emt 0:01:41]} (6... cxd4 $11 7. cxd4 e4) 7. dxc5 {[%emt 0:02:49]} dxc5 {[%emt 0:00:40]} 8. Be3 {[%emt 0:03:19] White is better.} Qe7 {[%emt 0:07:54]} 9. Nbd2 {[%emt 0:03:18] [#]} e4 $146 {[%emt 0:14:26]} ({Black should try} 9... Bh6 $1 $14) ({Predecessor:} 9... Nf6 10. Nb3 c4 11. Nbd2 Be6 12. Qa4 Ng4 13. Nxc4 Bxc4 14. Qxc4 Nxe3 15. fxe3 O-O {1-0 (22) Leski,M (2250)-Delebarre,X Enghien les Bains 1982}) 10. Ng5 $18 {[%emt 0:09:14]} f5 {[%emt 0:01:57]} 11. Nc4 {[%emt 0:00:06] [#] aiming for Nd6+.} Be5 {[%emt 0:06:45] Against Nd6+} 12. Qd5 {[%emt 0:04:22]} (12. f3 $18 {and White stays clearly on top.}) 12... Nf6 {[%emt 0:01:05]} 13. Qxc5 {[%emt 0:00:05] 0x0.0002daf51fcfdp-1022s more active pieces. The black rooks are badly placed.} Qxc5 {[%emt 0:00:09]} 14. Bxc5 {[%emt 0:00:05]} h6 {[%emt 0:00:41]} 15. Nxe5 {[%emt 0:00:40]} Nxe5 {[%emt 0:00:16]} 16. Bd4 {[%emt 0:00:27]} hxg5 {[%emt 0:03:57]} 17. Bxe5 {[%emt 0:00:07]} Kf7 {[%emt 0:06:24]} 18. f3 {[%emt 0:01:15]} exf3 {[%emt 0:01:01]} 19. exf3 {[%emt 0:00:57]} ({Resist} 19. Rxf3 Re8 20. Bd4 Rxe2) 19... Re8 {[%emt 0:05:08]} 20. Rfe1 {[%emt 0:00:33]} Be6 {[%emt 0:01:40]} 21. b3 {[%emt 0:04:50]} Rad8 {[%emt 0:01:45]} 22. Bd4 {[%emt 0:00:20] A strong pair of Bishops.} b6 {[%emt 0:01:35]} 23. Bf1 Bd5 {[%emt 0:03:55]} 24. Rxe8 {[%emt 0:03:48]} Rxe8 {[%emt 0:01:58]} 25. Bb5 {[%emt 0:01:30]} Rc8 {[%emt 0:03:57]} 26. Rf1 {[%emt 0:02:53]} Ne8 {[%emt 0:09:03]} 27. Be2 {[%emt 0:02:30]} Nc7 {[%emt 0:02:39]} 28. Rd1 {[%emt 0:00:56]} Ke6 {[%emt 0:18:00]} (28... Be6 $142 29. c4 Na6) 29. Be3 {[%emt 0:01:14]} Kf6 {[%emt 0:01:15]} 30. c4 {[%emt 0:00:16]} Be6 {[%emt 0:01:56]} 31. a4 {[%emt 0:13:03]} Na6 {[%emt 0:02:36]} 32. a5 {[%emt 0:00:22]} bxa5 {[%emt 0:01:30]} 33. Bxa7 {[%emt 0:00:24]} Nc5 {[%emt 0:00:40] [#]} 34. Rb1 {[%emt 0:01:50]} Ke5 {[%emt 0:01:13]} (34... a4 $16 {is a better defense.}) 35. Bb6 {[%emt 0:00:15]} a4 {[%emt 0:00:20]} 36. Bxc5 {[%emt 0:04:58]} ({Don't play} 36. bxa4 $6 Nxa4 37. Rb5+ Kd6 $16) 36... Rxc5 {[%emt 0:00:02]} 37. bxa4 {[%emt 0:00:06][%cal Bb3a4,Ba4a5,Ba5b6][%mdl 4128] Endgame KRB-KRB} Kd4 {[%emt 0:00:39]} 38. Rb6 {[%emt 0:04:56]} Bf7 {[%emt 0:01:04]} 39. Rb5 {[%emt 0:06:20] Inhibits Ra5. Strongly threatening Rxc5.} Rc6 {[%emt 0:00:48]} (39... Rc8 $142 40. Kf1 Re8) 40. Kf2 {[%emt 0:00:31]} Be6 $2 {[%emt 0:00:37]} (40... Rc8 {was necessary.} 41. g4 Rh8) 41. a5 {[%emt 0:30:51]} Bc8 {[%emt 0:11:31]} 42. Rb6 {[%emt 0:00:00]} Rxb6 {[%emt 0:02:37]} 43. axb6 {[%emt 0:00:00] KB-KB} f4 {[%emt 0:00:08]} (43... Kc5 $142 44. Ke3 Bb7) 44. h4 {[%emt 0:00:00]} gxh4 {[%emt 0:14:49]} 45. gxh4 {[%emt 0:00:00] White mates.} Bb7 {[%emt 0:00:37]} 46. Bd1 {[%emt 0:00:00]} Kxc4 {[%emt 0:02:41]} 47. Bc2 {[%emt 0:00:00]} Kc5 {[%emt 0:01:00]} 48. Bxg6 {[%emt 0:00:00]} Kd5 {Weighted Error Value: White=0.12 (very precise) /Black=0.44} 1-0

[Event "Olomouc Chess Summer Open 2022"]
[Site "Olomouc"]
[Date "2022.08.19"]
[Round "8.18"]
[White "Szkoludek, Sebastian"]
[Black "Al-Ali, Hussein Ali Hussein"]
[Result "0-1"]
[ECO "A05"]
[WhiteElo "1992"]
[BlackElo "2262"]
[Annotator "NA RC"]
[PlyCount "78"]
[EventDate "2022.08.14"]
[EventCountry "CZE"]
[SourceTitle "playchess.com"]
[Source "ChessBase"]
[SourceQuality "1"]
[TimeControl "40/5400+30:1800+30"]

1. Nf3 {[%emt 0:00:02]} Nf6 {[%emt 0:01:13]} 2. g3 {[%emt 0:00:03]} g6 {[%emt 0:00:45]} 3. b3 {[%emt 0:00:04]} Bg7 {[%emt 0:00:07]} 4. Bb2 {[%emt 0:00:03]} O-O {[%emt 0:00:12]} 5. Bg2 {[%emt 0:00:03]} d6 {[%emt 0:00:14]} 6. O-O {[%emt 0:00:08]} e5 {[%emt 0:01:05]} 7. c4 {[%emt 0:02:00]} Re8 {[%emt 0:00:48]} 8. Nc3 {[%emt 0:04:12]} Nc6 {[%emt 0:06:41]} 9. d4 {[%emt 0:06:10]} e4 {[%emt 0:04:50]} 10. Ne1 {[%emt 0:04:42]} Bf5 {[%emt 0:07:29]} 11. Nc2 {[%emt 0:02:55]} Qd7 {[%emt 0:00:13]} 12. Re1 {[%emt 0:05:56]} Ng4 {[%emt 0:08:19]} 13. Nd5 {[%emt 0:07:53]} h5 {[%emt 0:01:04]} 14. Bc1 {[%emt 0:10:06]} Ne7 {[%emt 0:03:34]} 15. Nde3 {[%emt 0:12:23]} c6 {[%emt 0:05:22]} 16. Qd2 {[%emt 0:14:48]} Nf6 {[%emt 0:03:20]} 17. Bb2 {[%emt 0:02:01]} d5 {[%emt 0:01:01]} 18. Rad1 {[%emt 0:04:52]} Be6 {[%emt 0:00:54]} 19. Rc1 {[%emt 0:03:45]} a5 {[%emt 0:00:31]} 20. cxd5 {[%emt 0:00:19]} cxd5 {[%emt 0:00:16]} 21. Na3 {[%emt 0:01:19]} Nc6 {[%emt 0:00:41]} 22. Nac2 {[%emt 0:02:31]} Reb8 {[%emt 0:01:10]} 23. Ba3 {[%emt 0:00:31]} h4 {[%emt 0:02:00]} 24. Nd1 {[%emt 0:01:03]} Nh5 {[%emt 0:01:12]} 25. Nc3 {[%emt 0:01:04]} b5 {[%emt 0:01:45]} 26. Bc5 {[%emt 0:00:08]} a4 {[%emt 0:02:29]} 27. b4 {[%emt 0:00:54]} hxg3 {[%emt 0:05:27]} 28. fxg3 {[%emt 0:00:27]} Nd8 {[%emt 0:01:46]} 29. e3 {[%emt 0:03:23]} Nf6 {[%emt 0:00:15]} 30. Na3 {[%emt 0:01:36]} Rb7 {[%emt 0:00:16]} 31. Ne2 {[%emt 0:01:27]} Bf5 {[%emt 0:00:57]} 32. Nf4 {[%emt 0:00:39]} Ne6 {[%emt 0:01:00]} 33. Nxe6 {[%emt 0:00:07]} Bxe6 {[%emt 0:01:01]} 34. Nb1 {[%emt 0:01:44]} Bh6 {[%emt 0:01:50]} 35. Nc3 {[%emt 0:01:18]} Kg7 {[%emt 0:00:45]} 36. Ne2 {[%emt 0:02:32]} Rh8 {[%emt 0:00:28]} 37. Rf1 {[%emt 0:00:50]} Ng4 {[%emt 0:00:00]} 38. Rc3 {[%emt 0:00:00]} Nxh2 {[%emt 0:00:09]} 39. Nf4 {[%emt 0:00:20]} Nxf1 {[%emt 0:00:23]} 0-1

[Event "Olomouc Chess Summer Open 2022"]
[Site "Olomouc"]
[Date "2022.08.19"]
[Round "8.19"]
[White "Houska, Jiri"]
[Black "Schletter, Felix"]
[Result "1-0"]
[ECO "E10"]
[WhiteElo "2220"]
[BlackElo "1975"]
[Annotator "NA RC"]
[PlyCount "95"]
[EventDate "2022.08.14"]
[EventCountry "CZE"]
[SourceTitle "playchess.com"]
[Source "ChessBase"]
[SourceQuality "1"]
[TimeControl "40/5400+30:1800+30"]

1. d4 {[%emt 0:01:13]} Nf6 {[%emt 0:00:08]} 2. Nf3 {[%emt 0:00:37]} e6 {[%emt 0:00:26]} 3. c4 {[%emt 0:00:13]} c5 {[%emt 0:00:06]} 4. d5 {[%emt 0:00:08]} b5 {[%emt 0:00:06]} 5. dxe6 {[%emt 0:00:23]} fxe6 {[%emt 0:00:07]} 6. cxb5 {[%emt 0:00:15]} d5 {[%emt 0:00:21]} 7. g3 {[%emt 0:01:37]} Bd6 {[%emt 0:01:30]} 8. Bg2 {[%emt 0:00:15]} O-O {[%emt 0:00:05]} 9. O-O {[%emt 0:00:08]} a6 {[%emt 0:01:30]} 10. bxa6 {[%emt 0:04:30]} Bxa6 {[%emt 0:00:31]} 11. b3 {[%emt 0:03:25]} Nc6 {[%emt 0:03:18]} 12. Bb2 {[%emt 0:00:09]} Rb8 {[%emt 0:08:41]} 13. Nbd2 {[%emt 0:01:17]} Ng4 {[%emt 0:05:09]} 14. Re1 {[%emt 0:06:36]} Qe7 {[%emt 0:16:48]} 15. h3 {[%emt 0:05:15]} Nge5 {[%emt 0:00:26]} 16. Nxe5 {[%emt 0:00:31]} Nxe5 {[%emt 0:00:26]} 17. Nf3 {[%emt 0:00:44]} Nxf3+ {[%emt 0:01:30]} 18. exf3 {[%emt 0:04:22]} Rfe8 {[%emt 0:04:07]} 19. Be5 {[%emt 0:03:32]} Bxe5 {[%emt 0:04:56]} 20. Rxe5 {[%emt 0:00:01]} Qd6 {[%emt 0:00:41]} 21. f4 c4 {[%emt 0:07:55]} 22. Qd4 {[%emt 0:07:49]} Rb4 {[%emt 0:08:13]} 23. Bxd5 {[%emt 0:13:59]} cxb3 {[%emt 0:00:28]} 24. Rxe6 {[%emt 0:05:21]} Rxe6 {[%emt 0:05:21]} 25. Bxe6+ {[%emt 0:01:08]} Qxe6 {[%emt 0:00:02]} 26. Qxb4 {[%emt 0:00:18]} bxa2 {[%emt 0:00:06]} 27. Qb8+ {[%emt 0:03:50]} Kf7 {[%emt 0:00:57]} 28. Qc7+ {[%emt 0:00:33]} Kg8 {[%emt 0:00:28]} 29. Qb8+ {[%emt 0:06:38]} Kf7 {[%emt 0:00:10]} 30. Qa7+ {[%emt 0:00:14]} Kf8 {[%emt 0:01:21]} 31. Qe3 {[%emt 0:09:16]} Bc4 {[%emt 0:00:04]} 32. Qxe6 {[%emt 0:00:48]} Bxe6 {[%emt 0:00:05]} 33. f5 {[%emt 0:07:14]} Bc4 {[%emt 0:01:01]} 34. f4 {[%emt 0:01:00]} Ke7 {[%emt 0:00:10]} 35. Kf2 {[%emt 0:00:04]} Kd6 {[%emt 0:00:10]} 36. Ke3 {[%emt 0:00:16]} Kc5 {[%emt 0:00:08]} 37. g4 {[%emt 0:01:00]} Kb4 {[%emt 0:00:11]} 38. Kd4 {[%emt 0:00:17]} Bb3 {[%emt 0:01:32]} 39. g5 {[%emt 0:01:20]} Ka3 {[%emt 0:00:07]} 40. Ke5 {[%emt 0:10:44]} Kb2 {[%emt 0:00:10]} 41. Rxa2+ {[%emt 0:30:27]} Bxa2 {[%emt 0:30:05]} 42. f6 {[%emt 0:01:46]} g6 {[%emt 0:03:55]} 43. Kd6 {[%emt 0:00:00]} Kc3 {[%emt 0:00:00]} 44. Ke7 {[%emt 0:00:00]} Kd4 {[%emt 0:00:00]} 45. f7 {[%emt 0:00:00]} Bxf7 {[%emt 0:00:00]} 46. Kxf7 {[%emt 0:00:00]} Ke4 {[%emt 0:00:00]} 47. Kg7 {[%emt 0:00:00]} Kxf4 {[%emt 0:00:00]} 48. h4 {[%emt 0:00:00]} 1-0